[Event "Titled Tuesday Blitz November 29 Late 2022"]
[White "Pinheiro, Iung Alicio de O."]
[Black "Rose, Felix"]
[WhiteFideId "2104350"]
[BlackFideId "5105722"]
[WhiteElo "2283"]
[BlackElo "2039"]
[Result "1-0"]
[Round "07"]
[TimeControl "180+1"]
[Date "2022.11.30"]
[WhiteClock "0:00:04"]
[BlackClock "0:00:01"]

1. d4 {[%clk 0:02:59]}  Nf6 {[%clk 0:02:55]} 2. c4 {[%clk 0:02:59]}  e6 {[%clk 0:02:55]} 3. g3 {[%clk 0:02:58]}  d5 {[%clk 0:02:55]} 4. Bg2 {[%clk 0:02:58]}  dxc4 {[%clk 0:02:55]} 5. Qa4+ {[%clk 0:02:55]}  Nbd7 {[%clk 0:02:55]} 6. Qxc4 {[%clk 0:02:55]}  a6 {[%clk 0:02:55]} 7. Qc2 {[%clk 0:02:55]}  c5 {[%clk 0:02:47]} 8. Nf3 {[%clk 0:02:35]}  Rb8 {[%clk 0:02:44]} 9. O-O {[%clk 0:02:33]}  b5 {[%clk 0:02:44]} 10. Ne5 {[%clk 0:02:31]}  Nxe5 {[%clk 0:02:20]} 11. dxe5 {[%clk 0:02:32]}  Nd5 {[%clk 0:02:20]} 12. Nd2 {[%clk 0:02:13]}  Bb7 {[%clk 0:02:18]} 13. Ne4 {[%clk 0:02:11]}  Be7 {[%clk 0:02:14]} 14. Rd1 {[%clk 0:02:04]}  Qb6 {[%clk 0:02:13]} 15. h4 {[%clk 0:01:58]}  h6 {[%clk 0:02:01]} 16. Nd6+ {[%clk 0:01:44]}  Bxd6 {[%clk 0:01:59]} 17. exd6 {[%clk 0:01:45]}  Qxd6 {[%clk 0:01:49]} 18. Bf4 {[%clk 0:01:16]}  e5 {[%clk 0:01:34]} 19. Qe4 {[%clk 0:01:09]}  Nxf4 {[%clk 0:01:09]} 20. Qxb7 {[%clk 0:00:35]}  Nxe2+ {[%clk 0:00:34]} 21. Kf1 {[%clk 0:00:34]}  Qxd1+ {[%clk 0:00:34]} 22. Rxd1 {[%clk 0:00:35]}  Rxb7 {[%clk 0:00:34]} 23. Bxb7 {[%clk 0:00:32]}  Nd4 {[%clk 0:00:34]} 24. Bxa6 {[%clk 0:00:33]}  Ke7 {[%clk 0:00:30]} 25. Bb7 {[%clk 0:00:25]}  f5 {[%clk 0:00:26]} 26. f4 {[%clk 0:00:20]}  b4 {[%clk 0:00:19]} 27. fxe5 {[%clk 0:00:19]}  Ke6 {[%clk 0:00:18]} 28. Re1 {[%clk 0:00:18]}  Rb8 {[%clk 0:00:14]} 29. Bg2 {[%clk 0:00:18]}  g5 {[%clk 0:00:14]} 30. h5 {[%clk 0:00:16]}  Rb6 {[%clk 0:00:14]} 31. Rc1 {[%clk 0:00:16]}  Rb5 {[%clk 0:00:13]} 32. Re1 {[%clk 0:00:12]}  Ra5 {[%clk 0:00:13]} 33. Rc1 {[%clk 0:00:12]}  Kxe5 {[%clk 0:00:13]} 34. Kf2 {[%clk 0:00:10]}  f4 {[%clk 0:00:13]} 35. gxf4+ {[%clk 0:00:09]}  Kxf4 {[%clk 0:00:13]} 36. Bf1 {[%clk 0:00:06]}  g4 {[%clk 0:00:13]} 37. Bc4 {[%clk 0:00:05]}  g3+ {[%clk 0:00:14]} 38. Kg2 {[%clk 0:00:06]}  Nf5 {[%clk 0:00:11]} 39. Rf1+ {[%clk 0:00:06]}  Kg5 {[%clk 0:00:10]} 40. Re1 {[%clk 0:00:05]}  Kxh5 {[%clk 0:00:08]} 41. Re5 {[%clk 0:00:05]}  Kg4 {[%clk 0:00:06]} 42. Be6 {[%clk 0:00:05]}  c4 {[%clk 0:00:01]} 43. Rxa5 {[%clk 0:00:04]} 1-0


[Site "https://www.chess.com"]

[Event "Titled Tuesday Blitz November 29 Late 2022"]
[White "Przybylski, Wojciech"]
[Black "Chirilov, James A"]
[WhiteFideId "1117599"]
[BlackFideId "30976677"]
[WhiteElo "2221"]
[BlackElo "1790"]
[Result "1-0"]
[Round "07"]
[TimeControl "180+1"]
[Date "2022.11.30"]
[WhiteClock "0:00:23"]
[BlackClock "0:00:15"]

1. e4 {[%clk 0:03:00]}  c5 {[%clk 0:03:00]} 2. Nf3 {[%clk 0:02:57]}  d6 {[%clk 0:03:00]} 3. Bb5+ {[%clk 0:02:56]}  Nd7 {[%clk 0:02:59]} 4. a4 {[%clk 0:02:55]}  Nf6 {[%clk 0:02:58]} 5. Nc3 {[%clk 0:02:55]}  g6 {[%clk 0:02:56]} 6. O-O {[%clk 0:02:54]}  Bg7 {[%clk 0:02:56]} 7. d3 {[%clk 0:02:54]}  O-O {[%clk 0:02:56]} 8. h3 {[%clk 0:02:50]}  a6 {[%clk 0:02:56]} 9. Bc4 {[%clk 0:02:50]}  e6 {[%clk 0:02:52]} 10. Re1 {[%clk 0:02:48]}  b6 {[%clk 0:02:51]} 11. Bg5 {[%clk 0:02:46]}  Bb7 {[%clk 0:02:52]} 12. Qd2 {[%clk 0:02:45]}  Qc7 {[%clk 0:02:47]} 13. Bh6 {[%clk 0:02:39]}  d5 {[%clk 0:02:46]} 14. exd5 {[%clk 0:02:37]}  exd5 {[%clk 0:02:47]} 15. Bxg7 {[%clk 0:02:33]}  Kxg7 {[%clk 0:02:48]} 16. Ba2 {[%clk 0:02:31]}  Rfe8 {[%clk 0:02:47]} 17. d4 {[%clk 0:02:20]}  c4 {[%clk 0:02:44]} 18. Rxe8 {[%clk 0:02:11]}  Rxe8 {[%clk 0:02:44]} 19. Re1 {[%clk 0:02:11]}  Ne4 {[%clk 0:02:40]} 20. Nxe4 {[%clk 0:02:08]}  dxe4 {[%clk 0:02:41]} 21. Nh2 {[%clk 0:02:07]}  Nf6 {[%clk 0:02:38]} 22. c3 {[%clk 0:01:57]}  b5 {[%clk 0:02:36]} 23. axb5 {[%clk 0:01:52]}  axb5 {[%clk 0:02:37]} 24. Bb1 {[%clk 0:01:51]}  h5 {[%clk 0:02:32]} 25. Nf1 {[%clk 0:01:49]}  Qd6 {[%clk 0:02:21]} 26. Qg5 {[%clk 0:01:46]}  b4 {[%clk 0:02:15]} 27. Ng3 {[%clk 0:01:44]}  Kh7 {[%clk 0:02:12]} 28. Qb5 {[%clk 0:01:35]}  bxc3 {[%clk 0:02:09]} 29. Qxb7 {[%clk 0:01:27]}  Re7 {[%clk 0:01:38]} 30. Qb5 {[%clk 0:01:23]}  Qxd4 {[%clk 0:01:33]} 31. bxc3 {[%clk 0:01:20]}  Qxc3 {[%clk 0:01:34]} 32. Re3 {[%clk 0:01:07]}  Qc1+ {[%clk 0:01:31]} 33. Kh2 {[%clk 0:01:04]}  c3 {[%clk 0:01:20]} 34. Qc5 {[%clk 0:00:57]}  Re6 {[%clk 0:00:59]} 35. Nxe4 {[%clk 0:00:38]}  Nxe4 {[%clk 0:00:42]} 36. Bxe4 {[%clk 0:00:37]}  Qd2 {[%clk 0:00:42]} 37. Qc7 {[%clk 0:00:26]}  Qxf2 {[%clk 0:00:35]} 38. Rf3 {[%clk 0:00:26]}  Qd2 {[%clk 0:00:15]} 39. Qxf7+ {[%clk 0:00:25]}  Kh6 {[%clk 0:00:14]} 40. Qxe6 {[%clk 0:00:24]}  c2 {[%clk 0:00:15]} 41. Qxg6# {[%clk 0:00:23]} 1-0


[Site "https://www.chess.com"]

[Event "Titled Tuesday Blitz November 29 Late 2022"]
[White "Rian, Kapriaga"]
[Black "Adel, Sara"]
[WhiteFideId "7103263"]
[BlackFideId "10616764"]
[WhiteElo "2326"]
[BlackElo "1994"]
[Result "1-0"]
[Round "07"]
[TimeControl "180+1"]
[Date "2022.11.30"]
[WhiteClock "0:00:05"]
[BlackClock "0:00:12"]

1. d4 {[%clk 0:03:00]}  Nf6 {[%clk 0:03:00]} 2. Nf3 {[%clk 0:02:59]}  g6 {[%clk 0:03:00]} 3. Bg5 {[%clk 0:02:57]}  Bg7 {[%clk 0:03:01]} 4. Nbd2 {[%clk 0:02:57]}  d6 {[%clk 0:02:59]} 5. e4 {[%clk 0:02:57]}  Nbd7 {[%clk 0:02:59]} 6. c3 {[%clk 0:02:57]}  c5 {[%clk 0:02:59]} 7. dxc5 {[%clk 0:02:55]}  Nxc5 {[%clk 0:03:00]} 8. Bb5+ {[%clk 0:02:43]}  Bd7 {[%clk 0:02:55]} 9. Bxd7+ {[%clk 0:02:31]}  Qxd7 {[%clk 0:02:56]} 10. Qe2 {[%clk 0:02:27]}  Na4 {[%clk 0:02:40]} 11. Nb3 {[%clk 0:02:13]}  Nxb2 {[%clk 0:02:17]} 12. Bxf6 {[%clk 0:02:05]}  Bxf6 {[%clk 0:02:06]} 13. Qxb2 {[%clk 0:02:04]}  Rc8 {[%clk 0:02:03]} 14. Rc1 {[%clk 0:02:03]}  Qg4 {[%clk 0:02:02]} 15. O-O {[%clk 0:01:44]}  Qxe4 {[%clk 0:02:02]} 16. Rfe1 {[%clk 0:01:39]}  Qf4 {[%clk 0:01:56]} 17. Nbd4 {[%clk 0:01:34]}  b6 {[%clk 0:01:29]} 18. Qb5+ {[%clk 0:01:31]}  Kf8 {[%clk 0:01:27]} 19. Qd7 {[%clk 0:01:21]}  Kg7 {[%clk 0:01:26]} 20. g3 {[%clk 0:01:01]}  Qh6 {[%clk 0:01:14]} 21. Rc2 {[%clk 0:00:38]}  Rc4 {[%clk 0:01:07]} 22. Rxe7 {[%clk 0:00:20]}  Rf8 {[%clk 0:00:52]} 23. Ne6+ {[%clk 0:00:17]}  Kg8 {[%clk 0:00:48]} 24. Nxf8 {[%clk 0:00:15]}  Bxe7 {[%clk 0:00:47]} 25. Qxe7 {[%clk 0:00:13]}  Qxf8 {[%clk 0:00:30]} 26. Qd7 {[%clk 0:00:13]}  Qa8 {[%clk 0:00:21]} 27. Kg2 {[%clk 0:00:12]}  Rc5 {[%clk 0:00:19]} 28. Re2 {[%clk 0:00:11]}  Rc8 {[%clk 0:00:18]} 29. Re7 {[%clk 0:00:09]}  Rf8 {[%clk 0:00:18]} 30. Qxd6 {[%clk 0:00:08]}  b5 {[%clk 0:00:16]} 31. Qf6 {[%clk 0:00:07]}  a5 {[%clk 0:00:16]} 32. h4 {[%clk 0:00:07]}  b4 {[%clk 0:00:16]} 33. cxb4 {[%clk 0:00:07]}  axb4 {[%clk 0:00:17]} 34. h5 {[%clk 0:00:07]}  Qxa2 {[%clk 0:00:17]} 35. h6 {[%clk 0:00:06]}  Qb3 {[%clk 0:00:12]} 36. Qg7# {[%clk 0:00:05]} 1-0


[Site "https://www.chess.com"]

[Event "Titled Tuesday Blitz November 29 Late 2022"]
[White "Richter, Paul"]
[Black "Bobkov, Vadim"]
[WhiteFideId "2046350"]
[BlackFideId "34110876"]
[WhiteElo "2578"]
[BlackElo "2172"]
[Result "1-0"]
[Round "07"]
[TimeControl "180+1"]
[Date "2022.11.30"]
[WhiteClock "0:02:41"]
[BlackClock "0:01:38"]

1. e4 {[%clk 0:03:00]}  c5 {[%clk 0:02:29]} 2. Nf3 {[%clk 0:03:00]}  Nc6 {[%clk 0:02:29]} 3. d4 {[%clk 0:03:00]}  cxd4 {[%clk 0:02:30]} 4. Nxd4 {[%clk 0:03:01]}  g6 {[%clk 0:02:30]} 5. Nc3 {[%clk 0:03:01]}  Bg7 {[%clk 0:02:30]} 6. Be3 {[%clk 0:03:01]}  Nf6 {[%clk 0:02:31]} 7. Nxc6 {[%clk 0:03:01]}  bxc6 {[%clk 0:02:30]} 8. e5 {[%clk 0:03:02]}  Ng8 {[%clk 0:02:29]} 9. Bd4 {[%clk 0:03:02]}  c5 {[%clk 0:02:29]} 10. Be3 {[%clk 0:03:02]}  Bxe5 {[%clk 0:02:25]} 11. Qd5 {[%clk 0:03:01]}  Bxc3+ {[%clk 0:02:23]} 12. bxc3 {[%clk 0:03:02]}  Qa5 {[%clk 0:01:44]} 13. Qxa8 {[%clk 0:02:59]}  Qxc3+ {[%clk 0:01:44]} 14. Ke2 {[%clk 0:02:51]}  Qxc2+ {[%clk 0:01:43]} 15. Bd2 {[%clk 0:02:50]}  Kd8 {[%clk 0:01:39]} 16. Rc1 {[%clk 0:02:42]}  Qe4+ {[%clk 0:01:38]} 17. Qxe4 {[%clk 0:02:41]} 1-0


[Site "https://www.chess.com"]

[Event "Titled Tuesday Blitz November 29 Late 2022"]
[White "Rios Escobar, Adan"]
[Black "Lopez Mulet, Inigo"]
[WhiteFideId "3403645"]
[BlackFideId "22235620"]
[WhiteElo "2310"]
[BlackElo "2289"]
[Result "0-1"]
[Round "07"]
[TimeControl "180+1"]
[Date "2022.11.30"]
[WhiteClock "0:00:06"]
[BlackClock "0:00:57"]

1. d4 {[%clk 0:03:00]}  g6 {[%clk 0:03:00]} 2. g3 {[%clk 0:02:53]}  Bg7 {[%clk 0:03:01]} 3. Bg2 {[%clk 0:02:53]}  d5 {[%clk 0:02:55]} 4. Nf3 {[%clk 0:02:51]}  c5 {[%clk 0:02:52]} 5. dxc5 {[%clk 0:02:49]}  Nf6 {[%clk 0:02:52]} 6. O-O {[%clk 0:02:49]}  O-O {[%clk 0:02:52]} 7. c3 {[%clk 0:02:38]}  a5 {[%clk 0:02:50]} 8. h3 {[%clk 0:02:19]}  Qc7 {[%clk 0:02:45]} 9. Be3 {[%clk 0:02:14]}  Na6 {[%clk 0:02:44]} 10. Na3 {[%clk 0:01:58]}  Bd7 {[%clk 0:02:32]} 11. Bd4 {[%clk 0:01:48]}  Nxc5 {[%clk 0:02:30]} 12. Be5 {[%clk 0:01:45]}  Qb6 {[%clk 0:02:29]} 13. Nc2 {[%clk 0:01:40]}  Rfd8 {[%clk 0:02:24]} 14. b4 {[%clk 0:01:37]}  Na4 {[%clk 0:02:19]} 15. Qd2 {[%clk 0:01:13]}  Bf5 {[%clk 0:01:54]} 16. Bd4 {[%clk 0:01:11]}  Qc7 {[%clk 0:01:52]} 17. Be5 {[%clk 0:01:01]}  Qc8 {[%clk 0:01:39]} 18. Ne3 {[%clk 0:00:52]}  Ne4 {[%clk 0:01:36]} 19. Nxf5 {[%clk 0:00:44]}  Nxd2 {[%clk 0:01:02]} 20. Nxe7+ {[%clk 0:00:42]}  Kf8 {[%clk 0:01:02]} 21. Nxc8 {[%clk 0:00:41]}  Nxf3+ {[%clk 0:01:03]} 22. exf3 {[%clk 0:00:22]}  Bxe5 {[%clk 0:01:02]} 23. Ne7 {[%clk 0:00:10]}  Kxe7 {[%clk 0:00:59]} 24. Rfe1 {[%clk 0:00:10]}  Kf6 {[%clk 0:01:00]} 25. f4 {[%clk 0:00:08]}  Bxc3 {[%clk 0:01:00]} 26. g4 {[%clk 0:00:06]}  Bxa1 {[%clk 0:01:01]} 27. g5+ {[%clk 0:00:06]}  Kg7 {[%clk 0:01:01]} 28. Rxa1 {[%clk 0:00:06]}  axb4 {[%clk 0:01:01]} 29. Rb1 {[%clk 0:00:06]}  Nc3 {[%clk 0:01:00]} 30. Rxb4 {[%clk 0:00:07]}  Rxa2 {[%clk 0:01:01]} 31. Rxb7 {[%clk 0:00:08]}  d4 {[%clk 0:01:00]} 32. Bf1 {[%clk 0:00:07]}  d3 {[%clk 0:01:00]} 33. Kg2 {[%clk 0:00:07]}  Ne4 {[%clk 0:00:59]} 34. Kf3 {[%clk 0:00:05]}  Rxf2+ {[%clk 0:00:59]} 35. Kxe4 {[%clk 0:00:05]}  Rxf1 {[%clk 0:01:00]} 36. f5 {[%clk 0:00:06]}  gxf5+ {[%clk 0:00:59]} 37. Ke5 {[%clk 0:00:05]}  d2 {[%clk 0:01:00]} 38. h4 {[%clk 0:00:05]}  d1=Q {[%clk 0:00:58]} 39. h5 {[%clk 0:00:06]}  Qd5# {[%clk 0:00:57]} 0-1


[Site "https://www.chess.com"]

[Event "Titled Tuesday Blitz November 29 Late 2022"]
[White "Risteski, Emil"]
[Black "Abdyzhapar, Asylbek"]
[WhiteFideId "15005267"]
[BlackFideId "13800337"]
[WhiteElo "2251"]
[BlackElo "2323"]
[Result "0-1"]
[Round "07"]
[TimeControl "180+1"]
[Date "2022.11.30"]
[WhiteClock "0:00:01"]
[BlackClock "0:00:26"]

1. Nf3 {[%clk 0:03:00]}  Nf6 {[%clk 0:01:31]} 2. g3 {[%clk 0:02:59]}  g6 {[%clk 0:01:31]} 3. Bg2 {[%clk 0:02:59]}  Bg7 {[%clk 0:01:32]} 4. O-O {[%clk 0:03:00]}  O-O {[%clk 0:01:33]} 5. Nc3 {[%clk 0:03:01]}  d6 {[%clk 0:01:33]} 6. d4 {[%clk 0:03:01]}  a6 {[%clk 0:01:32]} 7. a4 {[%clk 0:02:59]}  Nbd7 {[%clk 0:01:29]} 8. e4 {[%clk 0:02:59]}  c5 {[%clk 0:01:29]} 9. h3 {[%clk 0:02:57]}  cxd4 {[%clk 0:01:29]} 10. Nxd4 {[%clk 0:02:57]}  e6 {[%clk 0:01:29]} 11. a5 {[%clk 0:02:50]}  Qc7 {[%clk 0:01:29]} 12. Qe2 {[%clk 0:02:06]}  Rb8 {[%clk 0:01:29]} 13. Rd1 {[%clk 0:02:04]}  b5 {[%clk 0:01:28]} 14. axb6 {[%clk 0:02:05]}  Rxb6 {[%clk 0:01:28]} 15. Na4 {[%clk 0:01:50]}  Rb8 {[%clk 0:01:25]} 16. b3 {[%clk 0:01:44]}  Nb6 {[%clk 0:01:13]} 17. Nxb6 {[%clk 0:01:42]}  Rxb6 {[%clk 0:01:13]} 18. Ba3 {[%clk 0:01:37]}  Rd8 {[%clk 0:01:12]} 19. Rab1 {[%clk 0:01:04]}  Bb7 {[%clk 0:01:10]} 20. c4 {[%clk 0:01:02]}  Nd7 {[%clk 0:01:07]} 21. b4 {[%clk 0:00:55]}  Ba8 {[%clk 0:01:04]} 22. Rbc1 {[%clk 0:00:52]}  Rbb8 {[%clk 0:01:01]} 23. Nb3 {[%clk 0:00:45]}  h5 {[%clk 0:00:55]} 24. b5 {[%clk 0:00:37]}  Nc5 {[%clk 0:00:47]} 25. Nxc5 {[%clk 0:00:22]}  dxc5 {[%clk 0:00:46]} 26. bxa6 {[%clk 0:00:20]}  Rxd1+ {[%clk 0:00:44]} 27. Rxd1 {[%clk 0:00:21]}  Bd4 {[%clk 0:00:44]} 28. Qc2 {[%clk 0:00:14]}  Qa5 {[%clk 0:00:43]} 29. Bc1 {[%clk 0:00:13]}  Qxa6 {[%clk 0:00:43]} 30. Re1 {[%clk 0:00:04]}  e5 {[%clk 0:00:37]} 31. Bg5 {[%clk 0:00:03]}  Bc6 {[%clk 0:00:35]} 32. Rb1 {[%clk 0:00:02]}  Ra8 {[%clk 0:00:26]} 33. Bf6 {[%clk 0:00:01]}  Ba4 {[%clk 0:00:26]} 34. Qc1 {[%clk 0:00:01]}  Qxf6 {[%clk 0:00:26]} 0-1


[Site "https://www.chess.com"]

[Event "Titled Tuesday Blitz November 29 Late 2022"]
[White "Sadhwani, Raunak"]
[Black "Dardha, Daniel"]
[WhiteFideId "35093487"]
[BlackFideId "240990"]
[WhiteElo "2656"]
[BlackElo "2528"]
[Result "1-0"]
[Round "07"]
[TimeControl "180+1"]
[Date "2022.11.30"]
[WhiteClock "0:00:30"]
[BlackClock "0:00:01"]

1. c4 {[%clk 0:03:00]}  e6 {[%clk 0:02:58]} 2. Nf3 {[%clk 0:02:59]}  d5 {[%clk 0:02:57]} 3. d4 {[%clk 0:02:59]}  Nf6 {[%clk 0:02:57]} 4. g3 {[%clk 0:02:57]}  Bb4+ {[%clk 0:02:57]} 5. Bd2 {[%clk 0:02:57]}  a5 {[%clk 0:02:57]} 6. Bg2 {[%clk 0:02:53]}  O-O {[%clk 0:02:56]} 7. O-O {[%clk 0:02:53]}  dxc4 {[%clk 0:02:56]} 8. Qc2 {[%clk 0:02:50]}  Bxd2 {[%clk 0:02:55]} 9. Nbxd2 {[%clk 0:02:50]}  b5 {[%clk 0:02:55]} 10. a4 {[%clk 0:02:49]}  c6 {[%clk 0:02:54]} 11. b3 {[%clk 0:02:48]}  cxb3 {[%clk 0:02:51]} 12. Nxb3 {[%clk 0:02:49]}  Nd5 {[%clk 0:02:46]} 13. Rfd1 {[%clk 0:02:43]}  b4 {[%clk 0:02:43]} 14. Ne5 {[%clk 0:02:41]}  Ba6 {[%clk 0:02:37]} 15. e3 {[%clk 0:02:22]}  Nc3 {[%clk 0:02:30]} 16. Re1 {[%clk 0:02:22]}  f6 {[%clk 0:02:24]} 17. Nd3 {[%clk 0:02:16]}  Bxd3 {[%clk 0:02:11]} 18. Qxd3 {[%clk 0:02:17]}  Nd7 {[%clk 0:02:12]} 19. Qc4 {[%clk 0:02:03]}  Qe7 {[%clk 0:02:08]} 20. Qxc6 {[%clk 0:02:00]}  Rfc8 {[%clk 0:01:51]} 21. Qb7 {[%clk 0:02:00]}  Rcb8 {[%clk 0:01:41]} 22. Qf3 {[%clk 0:01:42]}  Ra7 {[%clk 0:01:27]} 23. e4 {[%clk 0:01:36]}  Nb6 {[%clk 0:01:13]} 24. h4 {[%clk 0:01:24]}  Nbxa4 {[%clk 0:01:02]} 25. e5 {[%clk 0:01:24]}  f5 {[%clk 0:00:53]} 26. d5 {[%clk 0:01:24]}  exd5 {[%clk 0:00:45]} 27. Nd4 {[%clk 0:01:24]}  Qc5 {[%clk 0:00:39]} 28. Nxf5 {[%clk 0:01:24]}  Nb6 {[%clk 0:00:31]} 29. e6 {[%clk 0:01:19]}  Re8 {[%clk 0:00:23]} 30. Qh5 {[%clk 0:01:03]}  g6 {[%clk 0:00:13]} 31. Qg5 {[%clk 0:01:04]}  Qf8 {[%clk 0:00:06]} 32. Nh6+ {[%clk 0:00:54]}  Kg7 {[%clk 0:00:06]} 33. Ng4 {[%clk 0:00:54]}  Kh8 {[%clk 0:00:03]} 34. Nf6 {[%clk 0:00:44]}  Ree7 {[%clk 0:00:03]} 35. Qe5 {[%clk 0:00:42]}  Rg7 {[%clk 0:00:01]} 36. h5 {[%clk 0:00:39]}  Nc4 {[%clk 0:00:01]} 37. Qd4 {[%clk 0:00:39]}  Nb5 {[%clk 0:00:01]} 38. Qxd5 {[%clk 0:00:31]}  Qxf6 {[%clk 0:00:01]} 39. Qxb5 {[%clk 0:00:30]} 1-0


[Site "https://www.chess.com"]

[Event "Titled Tuesday Blitz November 29 Late 2022"]
[White "Sailer, Mike"]
[Black "Romero Ruscalleda, Josep"]
[WhiteFideId "2012901"]
[BlackFideId "2231859"]
[WhiteElo "2109"]
[BlackElo "2183"]
[Result "0-1"]
[Round "07"]
[TimeControl "180+1"]
[Date "2022.11.30"]
[WhiteClock "0:00:04"]
[BlackClock "0:00:35"]

1. Nf3 {[%clk 0:03:00]}  g6 {[%clk 0:03:00]} 2. c4 {[%clk 0:03:00]}  Bg7 {[%clk 0:03:01]} 3. Nc3 {[%clk 0:03:00]}  d6 {[%clk 0:03:01]} 4. g3 {[%clk 0:03:00]}  e5 {[%clk 0:03:01]} 5. Bg2 {[%clk 0:03:01]}  f5 {[%clk 0:03:01]} 6. d4 {[%clk 0:02:58]}  Nc6 {[%clk 0:02:58]} 7. dxe5 {[%clk 0:02:58]}  Nxe5 {[%clk 0:02:56]} 8. Nxe5 {[%clk 0:02:58]}  Bxe5 {[%clk 0:02:56]} 9. O-O {[%clk 0:02:58]}  Ne7 {[%clk 0:02:53]} 10. Bg5 {[%clk 0:02:46]}  O-O {[%clk 0:02:50]} 11. Nd5 {[%clk 0:02:43]}  Rf7 {[%clk 0:02:45]} 12. Nxe7+ {[%clk 0:02:37]}  Rxe7 {[%clk 0:02:44]} 13. Bxe7 {[%clk 0:02:37]}  Qxe7 {[%clk 0:02:44]} 14. Qd2 {[%clk 0:02:30]}  Qf6 {[%clk 0:02:36]} 15. Rab1 {[%clk 0:02:24]}  f4 {[%clk 0:02:34]} 16. b4 {[%clk 0:01:59]}  Kg7 {[%clk 0:02:31]} 17. c5 {[%clk 0:01:57]}  Bf5 {[%clk 0:02:20]} 18. Rbc1 {[%clk 0:01:49]}  dxc5 {[%clk 0:02:03]} 19. Rxc5 {[%clk 0:01:45]}  Rd8 {[%clk 0:01:56]} 20. Qc1 {[%clk 0:01:34]}  b6 {[%clk 0:01:54]} 21. Rxc7+ {[%clk 0:01:18]}  Bxc7 {[%clk 0:01:53]} 22. Qxc7+ {[%clk 0:01:18]}  Rd7 {[%clk 0:01:53]} 23. Qxf4 {[%clk 0:01:17]}  Qb2 {[%clk 0:01:47]} 24. Qc4 {[%clk 0:01:08]}  Re7 {[%clk 0:01:38]} 25. e3 {[%clk 0:01:04]}  Be6 {[%clk 0:01:32]} 26. Qd4+ {[%clk 0:01:00]}  Qxd4 {[%clk 0:01:31]} 27. exd4 {[%clk 0:01:01]}  Bxa2 {[%clk 0:01:30]} 28. d5 {[%clk 0:00:57]}  Bc4 {[%clk 0:01:28]} 29. Rd1 {[%clk 0:00:54]}  Rd7 {[%clk 0:01:08]} 30. d6 {[%clk 0:00:54]}  a5 {[%clk 0:00:58]} 31. Bc6 {[%clk 0:00:52]}  Rd8 {[%clk 0:00:58]} 32. b5 {[%clk 0:00:49]}  Be6 {[%clk 0:00:50]} 33. f4 {[%clk 0:00:38]}  Kf6 {[%clk 0:00:50]} 34. Kf2 {[%clk 0:00:39]}  a4 {[%clk 0:00:46]} 35. Ke3 {[%clk 0:00:36]}  a3 {[%clk 0:00:46]} 36. d7 {[%clk 0:00:28]}  a2 {[%clk 0:00:45]} 37. Kd4 {[%clk 0:00:22]}  Bxd7 {[%clk 0:00:44]} 38. Ra1 {[%clk 0:00:08]}  Bxc6+ {[%clk 0:00:43]} 39. Kc4 {[%clk 0:00:09]}  Bd5+ {[%clk 0:00:41]} 40. Kb4 {[%clk 0:00:08]}  Be6 {[%clk 0:00:40]} 41. h4 {[%clk 0:00:08]}  Rd3 {[%clk 0:00:39]} 42. g4 {[%clk 0:00:06]}  Rb3+ {[%clk 0:00:38]} 43. Ka4 {[%clk 0:00:07]}  Rb1 {[%clk 0:00:38]} 44. g5+ {[%clk 0:00:05]}  Kf7 {[%clk 0:00:36]} 45. Rxa2 {[%clk 0:00:04]}  Bxa2 {[%clk 0:00:35]} 0-1


[Site "https://www.chess.com"]

[Event "Titled Tuesday Blitz November 29 Late 2022"]
[White "Salem, A.R. Saleh"]
[Black "Carlsen, Magnus"]
[WhiteFideId "9301348"]
[BlackFideId "1503014"]
[WhiteElo "2628"]
[BlackElo "2830"]
[Result "0-1"]
[Round "07"]
[TimeControl "180+1"]
[Date "2022.11.30"]
[WhiteClock "0:00:01"]
[BlackClock "0:00:51"]

1. d4 {[%clk 0:03:00]}  d5 {[%clk 0:02:58]} 2. c4 {[%clk 0:03:01]}  c6 {[%clk 0:02:58]} 3. Nc3 {[%clk 0:03:02]}  Nf6 {[%clk 0:02:58]} 4. Nf3 {[%clk 0:03:02]}  a6 {[%clk 0:02:56]} 5. g3 {[%clk 0:03:02]}  Bf5 {[%clk 0:02:46]} 6. Bg2 {[%clk 0:03:02]}  e6 {[%clk 0:02:45]} 7. O-O {[%clk 0:03:01]}  Be7 {[%clk 0:02:45]} 8. Nh4 {[%clk 0:03:00]}  Bg4 {[%clk 0:02:43]} 9. f3 {[%clk 0:02:52]}  Bh5 {[%clk 0:02:41]} 10. g4 {[%clk 0:02:33]}  Bg6 {[%clk 0:02:26]} 11. h3 {[%clk 0:02:31]}  dxc4 {[%clk 0:02:23]} 12. f4 {[%clk 0:02:20]}  Nd5 {[%clk 0:02:19]} 13. Nxg6 {[%clk 0:02:06]}  hxg6 {[%clk 0:02:20]} 14. e4 {[%clk 0:02:02]}  Nb4 {[%clk 0:02:19]} 15. Be3 {[%clk 0:02:02]}  Nd7 {[%clk 0:02:18]} 16. a3 {[%clk 0:01:58]}  Nd3 {[%clk 0:02:16]} 17. b3 {[%clk 0:01:59]}  c5 {[%clk 0:02:07]} 18. d5 {[%clk 0:01:55]}  e5 {[%clk 0:02:07]} 19. d6 {[%clk 0:01:19]}  Bxd6 {[%clk 0:02:04]} 20. bxc4 {[%clk 0:01:18]}  exf4 {[%clk 0:02:04]} 21. e5 {[%clk 0:00:51]}  Bxe5 {[%clk 0:01:45]} 22. Qxd3 {[%clk 0:00:45]}  fxe3 {[%clk 0:01:45]} 23. Qxe3 {[%clk 0:00:23]}  O-O {[%clk 0:01:45]} 24. Kh1 {[%clk 0:00:22]}  b5 {[%clk 0:01:36]} 25. Rad1 {[%clk 0:00:21]}  Bd4 {[%clk 0:01:36]} 26. Qg3 {[%clk 0:00:18]}  bxc4 {[%clk 0:01:37]} 27. Bd5 {[%clk 0:00:15]}  Nf6 {[%clk 0:01:17]} 28. Bxa8 {[%clk 0:00:11]}  Qxa8+ {[%clk 0:01:18]} 29. Kh2 {[%clk 0:00:08]}  Rb8 {[%clk 0:01:18]} 30. Rd2 {[%clk 0:00:07]}  Rb3 {[%clk 0:01:17]} 31. Rf3 {[%clk 0:00:06]}  Bxc3 {[%clk 0:01:04]} 32. Rxc3 {[%clk 0:00:06]}  Rxc3 {[%clk 0:01:03]} 33. Qxc3 {[%clk 0:00:06]}  Ne4 {[%clk 0:01:04]} 34. Qe3 {[%clk 0:00:01]}  Qb8+ {[%clk 0:01:02]} 35. Kg2 {[%clk 0:00:01]}  Nxd2 {[%clk 0:01:03]} 36. Qxd2 {[%clk 0:00:02]}  Kh7 {[%clk 0:00:54]} 37. Qc3 {[%clk 0:00:02]}  Qf4 {[%clk 0:00:53]} 38. Qc2 {[%clk 0:00:01]}  Qd4 {[%clk 0:00:52]} 39. Qe2 {[%clk 0:00:01]}  c3 {[%clk 0:00:51]} 40. Qe1 {[%clk 0:00:01]} 0-1


[Site "https://www.chess.com"]